fUSD/lending_fUSD_20251103
["ID","MTS","AMOUNT","RATE_DAILY","PERIOD"]
[392979234,1762192251066,-159.12997,0.00037129,31]
[392979235,1762192251074,-368.0945557,0.00037129,31]
[392979236,1762192251083,-31980.73361577,0.00037129,24]
[392979237,1762192251093,-9821668.18229926,0.00037129,7]
[392979238,1762192251202,-893.3086,0.00037129,7]
[392979239,1762192251213,-107675.573832,0.00037129,7]
[392979240,1762192251224,-7758.0,0.00037129,7]
[392979241,1762192251241,-151.0,0.0003695,31]
[392979242,1762192251250,-870.76457577,0.00037129,7]
[392979243,1762192251278,-151.0,0.0003315,31]
[392979244,1762192251287,-158.255809,0.00037129,31]
[392979245,1762192251296,-231.3636247,0.00037129,7]
[392979246,1762192251307,-434035.13104957,0.00037129,7]
[392979247,1762192251317,-30492.44386127,0.00037129,7]
[392979248,1762192251328,-28059.75235068,0.00037129,7]
[392979249,1762192251338,-26743.07468735,0.00037129,7]
[392979250,1762192251349,-3670.10718,0.00037129,7]
[392979251,1762192251360,-3449.24622043,0.00037129,7]
[392979252,1762192251437,-371.85221994,0.000279,3]
[392979253,1762192251449,-128.14778006,0.000279,3]
[392979254,1762192251458,-208.43684514,0.0003014,3]
[392979255,1762192251473,-791.56315486,0.0003014,3]
[392979256,1762192251483,-243.66913834,0.00030724,2]
[392979257,1762192251492,-500.0,0.00031732,3]
[392979258,1762192251502,-394.458318,0.0003315,31]
[392979259,1762192251511,-151.0,0.0003315,31]
[392979260,1762192251521,-500.0,0.00033651,3]
[392979261,1762192251530,-1000.0,0.00033972,3]
[392979262,1762192251539,-151.0,0.0003695,31]
[392979263,1762192251548,-394.458318,0.0003695,31]
[392979264,1762192251558,-151.0,0.0003695,31]
[392979265,1762192251568,-151.0,0.00037129,31]
[392979266,1762192251579,-151.0,0.00037129,31]
[392979267,1762192251589,-151.0,0.00037129,31]
[392979268,1762192251598,-394.458318,0.00037129,31]
[392979269,1762192251607,-394.458318,0.00037129,31]
[392979270,1762192251616,-117357.79076052,0.00037129,7]
[392979271,1762192251639,-2594734.03753342,0.00037129,7]
[392979272,1762192251789,-507.298977,0.000303,30]
[392979273,1762192251799,-394.458318,0.0003315,31]
[392979274,1762192251809,-394.458318,0.0003315,31]
[392979275,1762192251819,-500.0,0.00035049,3]
[392979276,1762192251828,-1000.0,0.00035891,3]
[392979277,1762192251838,-500.0,0.00036025,3]
[392979278,1762192251848,-394.458318,0.0003695,31]
[392979279,1762192251859,-82.976069,0.0003695,31]
[392979529,1762193141866,1567.35,0.00026119,120]
[392979550,1762193437624,-1983.14308496,0.00017577,2]
[392979551,1762193437635,-1075.2,0.00017577,2]
[392979552,1762193437647,-299.12691504,0.00017577,2]
[392979553,1762193437657,-160.0,0.00018193,2]
[392979554,1762193437666,-104.82161348,0.00018199,2]
[392979555,1762193437677,-145.17838652,0.00018199,2]
[392979556,1762193437687,-183.0,0.000182,2]
[392979557,1762193437696,-154.17635411,0.000182,2]
[392979558,1762193437705,-382.12409828,0.000182,2]
[392979559,1762193437715,-250.0,0.00018236,2]
[392979560,1762193437724,-519.42,0.00018299,2]
[392979561,1762193437734,-500.0,0.00018299,2]
[392979562,1762193437743,-312.07106839,0.00018299,2]
[392979563,1762193437753,-173.2036989,0.00018299,2]
[392979564,1762193437781,-76.55760057,0.00018299,2]
[392979565,1762193437791,-329.45601338,0.00018299,2]
[392979566,1762193437800,-500.0,0.00018299,2]
[392979567,1762193437809,-500.0,0.00018299,2]
[392979568,1762193437820,-500.0,0.00018299,2]
[392979569,1762193437829,-500.0,0.00018299,2]
[392979570,1762193437840,-276.90388769,0.00018299,2]
[392979572,1762193437850,-500.0,0.00018299,2]
[392979574,1762193437860,-500.0,0.00018299,2]
[392979575,1762193437870,-500.0,0.00018299,2]
[392979576,1762193437880,-500.0,0.00018299,2]
[392979577,1762193437890,-500.0,0.00018299,2]
[392979579,1762193437899,-500.0,0.00018299,2]
[392979581,1762193437909,-500.0,0.00018299,2]
[392979583,1762193437918,-500.0,0.00018299,2]
[392979585,1762193437927,-816.8,0.00018299,2]
[392979586,1762193437936,-500.0,0.00018299,2]
[392979588,1762193437946,-1032.018,0.000183,2]
[392979590,1762193437955,-420000.0,0.000183,2]
[392979592,1762193437965,-1000.0,0.000183,2]
[392979594,1762193437975,-816.8,0.00018573,2]
[392979597,1762193437984,-816.8,0.00018847,2]
[392979599,1762193437994,-500.0,0.00018999,2]
[392979601,1762193438004,-71013.01799683,0.00019,2]
[392979603,1762193438013,-816.8,0.00019121,2]
[392979605,1762193438022,-816.8,0.00019395,2]
[392979607,1762193438032,-816.86,0.00019669,2]
[392979608,1762193438042,-250.0,0.00020018,2]
[392979609,1762193438051,-170.77,0.0002013,2]
[392979610,1762193438061,-382.12409825,0.00020289,2]
[392979611,1762193438070,-154.17635411,0.0002055,2]
[392979612,1762193438080,-500.0,0.00021918,4]
[392979613,1762193438089,-500.0,0.00021918,4]
[392979614,1762193438099,-500.0,0.00021918,4]
[392979615,1762193438109,-500.0,0.00021918,4]
[392979616,1762193438119,-500.0,0.00021918,4]
[392979618,1762193438129,-500.0,0.00021918,4]
[392979620,1762193438141,-500.0,0.00021918,4]
[392979622,1762193438151,-500.0,0.00021918,4]
[392979624,1762193438161,-2525.3,0.00021953,2]
[392979626,1762193438171,-382.12409825,0.00022378,2]
[392979627,1762193438181,-154.17635411,0.00022901,2]
[392979630,1762193438191,-1567.35,0.00023217,2]
[392979631,1762193438201,-201.71,0.00023415,2]
[392979632,1762193438213,-1000.0,0.00023416,2]
[392979634,1762193438222,-3326.95,0.00023449,2]
[392979635,1762193438232,-150.0,0.00023453,2]
[392979636,1762193438242,-382.12409825,0.00024467,2]
[392979637,1762193438252,-341.8,0.00024658,2]
[392979638,1762193438262,-477.5520043,0.000248,3]
[392979639,1762193438272,-100096.16041,0.000248,3]
[392979640,1762193438282,-33365.3868035,0.0002489,3]
[392979641,1762193438292,-154.17635411,0.00025251,2]
[392979642,1762193438302,-1000.0,0.00026027,2]
[392979643,1762193438314,-1000.0,0.00026301,2]
[392979644,1762193438325,-1000.0,0.00026343,2]
[392979645,1762193438335,-382.12409825,0.00026556,2]
[392979646,1762193438344,-1000.0,0.00026575,2]
[392979647,1762193438353,-1000.0,0.00026849,2]
[392979648,1762193438363,-1000.0,0.00027123,2]
[392979649,1762193438372,-341.8,0.00027397,2]
[392979650,1762193438383,-1000.0,0.00027397,2]
[392979651,1762193438393,-154.17635411,0.00027601,2]
[392979652,1762193438402,-1000.0,0.00027671,2]
[392979653,1762193438412,-33365.3868035,0.0002791,3]
[392979654,1762193438422,-23167.9032879,0.0002792,3]
[392979655,1762193438432,-23167.9032879,0.0002793,3]
[392979656,1762193438443,-3420.0,0.0002794,2]
[392979657,1762193438454,-607.0,0.0002794,2]
[392979658,1762193438464,-573.0,0.0002794,2]
[392979659,1762193438474,-820.0,0.0002794,2]
[392979660,1762193438484,-1594.0,0.0002794,2]
[392979661,1762193438494,-1314.0,0.0002794,2]
[392979662,1762193438504,-819.0,0.0002794,2]
[392979663,1762193438513,-1272.0,0.0002794,2]
[392979664,1762193438523,-905.0,0.0002794,2]
[392979665,1762193438532,-2140.0,0.0002794,2]
[392979666,1762193438543,-6468.0,0.0002794,2]
[392979667,1762193438552,-6652.0,0.0002794,2]
[392979668,1762193438562,-559.0,0.0002794,2]
[392979669,1762193438572,-1000.0,0.00027945,2]
[392979670,1762193438581,-1000.0,0.00028219,2]
[392979671,1762193438591,-164.34626945,0.00028375,5]
[392979672,1762193438601,-1000.0,0.00028493,2]
[392979673,1762193438611,-382.12409825,0.00028646,2]
[392979674,1762193438621,-1000.0,0.00028767,2]
[392979675,1762193438631,-1567.35,0.00029021,120]
[392979676,1762193438640,-1000.0,0.00029041,2]
[392979677,1762193438649,-1000.0,0.0002927,2]
[392979678,1762193438659,-33365.3868035,0.00029305,3]
[392979679,1762193438668,-1000.0,0.00029315,2]
[392979680,1762193438678,-1000.0,0.00029589,2]
[392979681,1762193438688,-1000.0,0.00029863,2]
[392979682,1762193438698,-154.17635411,0.00029951,2]
[392979683,1762193438709,-1000.0,0.00030136,2]
[392979684,1762193438718,-1029.45,0.00030136,2]
[392979685,1762193438728,-500.0,0.00030136,2]
[392979686,1762193438738,-341.8,0.00030137,2]
[392979687,1762193438748,-1000.0,0.00030137,2]
[392979688,1762193438759,-365.10504449,0.00030137,2]
[392979689,1762193438768,-1000.0,0.0003041,2]
[392979690,1762193438778,-1029.45,0.0003041,2]
[392979691,1762193438788,-500.0,0.0003041,2]
[392979692,1762193438802,-1000.0,0.00030411,2]
[392979693,1762193438811,-2175.639,0.00030423,26]
[392979694,1762193438821,-181.751,0.00030423,26]
[392979695,1762193438831,-1852.42,0.00030453,2]
[392979696,1762193438842,-1029.45,0.00030684,2]
[392979697,1762193438852,-500.0,0.00030684,2]
[392979698,1762193438862,-1000.0,0.00030685,2]
[392979699,1762193438871,-382.12409825,0.00030735,2]
[392979700,1762193438880,-905.0,0.0003094,2]
[392979701,1762193438890,-1262.604,0.0003094,2]
[392979702,1762193438900,-1029.45,0.00030958,2]
[392979703,1762193438910,-500.0,0.00030958,2]
[392979704,1762193438919,-1000.0,0.00030959,2]
[392979705,1762193438929,-1029.45,0.00031232,2]
[392979706,1762193438938,-500.0,0.00031232,2]
[392979707,1762193438949,-1000.0,0.00031233,2]
[392979708,1762193438958,-1029.45,0.00031506,2]
[392979709,1762193438968,-500.0,0.00031506,2]
[392979710,1762193438977,-1000.0,0.00031507,2]
[392979711,1762193438987,-1029.45,0.0003178,2]
[392979712,1762193438996,-500.0,0.0003178,2]
[392979713,1762193439006,-1000.0,0.00031781,2]
[392979714,1762193439015,-1567.35,0.00031923,120]
[392979715,1762193439026,-1029.45,0.00032054,2]
[392979716,1762193439036,-500.0,0.00032054,2]
[392979717,1762193439045,-1000.0,0.00032055,2]
[392979718,1762193439055,-1000.0,0.00032197,2]
[392979719,1762193439065,-154.17635411,0.00032302,2]
[392979720,1762193439076,-1029.45,0.00032328,2]
[392979721,1762193439087,-500.0,0.00032328,2]
[392979722,1762193439098,-1000.0,0.00032329,2]
[392979723,1762193439108,-1029.45,0.00032602,2]
[392979724,1762193439119,-493.56831376,0.00032602,2]
[392979725,1762193439130,-1000.0,0.00032603,2]
[392979726,1762193439142,-382.12409825,0.00032824,2]
[392979727,1762193439152,-1029.45,0.00032876,2]
[392979728,1762193439163,-341.8,0.00032877,2]
[392979729,1762193439173,-1000.0,0.00032877,2]
[392979730,1762193439183,-407.810258,0.00033,14]
[392979731,1762193439193,-23167.9032879,0.0003314,3]
[392979732,1762193439204,-1029.45,0.0003315,2]
[392979733,1762193439215,-1000.0,0.00033151,2]
[392979734,1762193439225,-150.0,0.00033386,7]
[392979735,1762193439236,-172.09165211,0.00033386,7]
[392979736,1762193439247,-150.0,0.00033386,7]
[392979737,1762193439256,-150.0,0.00033386,7]
[392979738,1762193439266,-1630.22207936,0.00033415,30]
[392979739,1762193439276,-1029.45,0.00033424,2]
[392979740,1762193439286,-1000.0,0.00033425,2]
[392979741,1762193439300,-1029.45,0.00033698,2]
[392979742,1762193439309,-1000.0,0.00033699,2]
[392979743,1762193439320,-150.0,0.00033699,60]
[392979744,1762193439330,-150.0,0.00033699,2]
[392979745,1762193439341,-150.0,0.00033699,60]
[392979746,1762193439351,-150.0,0.00033699,60]
[392979747,1762193439361,-151.97796274,0.00033699,60]
[392979748,1762193439371,-203.04390248,0.00033699,60]
[392979749,1762193439382,-150.0,0.00033699,60]
[392979750,1762193439392,-150.0,0.00033699,60]
[392979751,1762193439403,-150.0,0.00033699,60]
[392979752,1762193439413,-150.0,0.00033699,60]
[392979753,1762193439423,-150.0,0.00033699,60]
[392979754,1762193439433,-150.0,0.00033699,60]
[392979755,1762193439443,-150.0,0.00033699,60]
[392979756,1762193439453,-150.0,0.00033699,60]
[392979757,1762193439463,-150.0,0.00033699,60]
[392979758,1762193439473,-150.0,0.00033699,60]
[392979759,1762193439483,-150.0,0.00033699,60]
[392979760,1762193439493,-150.0,0.00033699,60]
[392979762,1762193439503,-150.0,0.00033699,30]
[392979763,1762193439513,-150.0,0.00033699,60]
[392979764,1762193439522,-150.0,0.00033699,2]
[392979765,1762193439532,-150.0,0.00033699,60]
[392979766,1762193439541,-150.0,0.00033699,60]
[392979767,1762193439551,-150.0,0.00033699,60]
[392979768,1762193439559,-2525.3,0.00033734,2]
[392979769,1762193439569,-150.0,0.00033836,2]
[392979770,1762193439579,-150.0,0.00033836,60]
[392979771,1762193439588,-150.0,0.00033836,60]
[392979772,1762193439598,-203.92497175,0.00033836,60]
[392979773,1762193439607,-150.0,0.00033836,60]
[392979774,1762193439617,-259.681106,0.00033836,60]
[392979775,1762193439626,-150.0,0.00033836,60]
[392979777,1762193439635,-150.0,0.00033836,60]
[392979778,1762193439645,-150.0,0.00033836,60]
[392979779,1762193439654,-150.0,0.00033836,60]
[392979781,1762193439664,-905.0,0.0003394,2]
[392979782,1762193439673,-1029.45,0.00033972,2]
[392979783,1762193439682,-1000.0,0.00033973,2]
[392979784,1762193439691,-200.0,0.00033973,2]
[392979785,1762193439700,-200.0,0.00033973,60]
[392979786,1762193439709,-200.0,0.00033973,60]
[392979787,1762193439719,-150.0,0.00033973,60]
[392979788,1762193439728,-200.0,0.00033973,60]
[392979789,1762193439738,-200.0,0.00033973,60]
[392979790,1762193439748,-200.0,0.00033973,60]
[392979791,1762193439757,-1029.45,0.00034246,2]
[392979792,1762193439766,-1659.0,0.00034247,2]
[392979793,1762193439775,-150.92,0.00034362,60]
[392979794,1762193439785,-150.92,0.00034362,60]
[392979795,1762193439794,-150.93,0.00034362,60]
[392979796,1762193439803,-150.93,0.0003439,60]
[392979797,1762193439812,-150.9,0.00034391,60]
[392979798,1762193439823,-500.0,0.00034391,5]
[392979799,1762193439833,-4372.24,0.00034391,120]
[392979800,1762193439842,-300.0,0.00034432,2]
[392979801,1762193439851,-150.92,0.00034462,60]
[392979802,1762193439861,-150.92,0.00034462,60]
[392979803,1762193439871,-150.93,0.00034462,60]
[392979804,1762193439881,-150.9,0.00034491,60]
[392979805,1762193439890,-1029.45,0.0003452,2]
[392979806,1762193439899,-1000.0,0.00034521,2]
[392979807,1762193439909,-33365.3868035,0.00034552,3]
[392979808,1762193439918,-150.92,0.00034562,60]
[392979809,1762193439928,-150.92,0.00034562,60]
[392979810,1762193439937,-150.93,0.00034562,60]
[392979811,1762193439947,-200.0,0.00034562,2]
[392979812,1762193439959,-200.0,0.00034562,2]
[392979813,1762193439968,-200.0,0.00034562,2]
[392979814,1762193439977,-200.0,0.00034562,2]
[392979815,1762193439987,-200.0,0.00034562,2]
[392979816,1762193439996,-200.0,0.00034562,2]
[392979817,1762193440007,-200.0,0.00034562,2]
[392979818,1762193440016,-200.0,0.00034562,2]
[392979819,1762193440025,-200.0,0.00034562,2]
[392979820,1762193440034,-200.0,0.00034562,2]
[392979821,1762193440044,-200.0,0.00034562,2]
[392979822,1762193440054,-289.0,0.00034562,2]
[392979823,1762193440063,-200.0,0.00034562,2]
[392979824,1762193440076,-200.0,0.00034562,2]
[392979825,1762193440085,-200.0,0.00034562,2]
[392979826,1762193440095,-200.0,0.00034562,2]
[392979827,1762193440104,-200.0,0.00034562,2]
[392979828,1762193440113,-200.0,0.00034562,2]
[392979829,1762193440122,-200.0,0.00034562,2]
[392979830,1762193440131,-200.0,0.00034562,2]
[392979831,1762193440141,-200.0,0.00034562,2]
[392979832,1762193440150,-200.0,0.00034562,2]
[392979833,1762193440163,-200.0,0.00034562,2]
[392979834,1762193440172,-200.0,0.00034562,2]
[392979835,1762193440180,-200.0,0.00034562,2]
[392979836,1762193440190,-200.0,0.00034562,2]
[392979837,1762193440199,-200.0,0.00034562,2]
[392979838,1762193440208,-200.0,0.00034562,2]
[392979839,1762193440217,-200.0,0.00034562,2]
[392979840,1762193440227,-200.0,0.00034562,2]
[392979841,1762193440236,-200.0,0.00034562,2]
[392979842,1762193440244,-800.0,0.00034562,13]
[392979843,1762193440254,-800.0,0.00034562,13]
[392979844,1762193440263,-594.0,0.00034562,13]
[392979845,1762193440273,-200.0,0.00034562,2]
[392979846,1762193440282,-200.0,0.00034562,2]
[392979847,1762193440292,-200.0,0.00034562,2]
[392979848,1762193440301,-200.0,0.00034562,2]
[392979849,1762193440314,-200.0,0.00034562,2]
[392979850,1762193440324,-800.0,0.00034562,13]
[392979851,1762193440333,-800.0,0.00034562,13]
[392979852,1762193440343,-800.0,0.00034562,13]
[392979853,1762193440353,-800.0,0.00034562,13]
[392979854,1762193440362,-800.0,0.00034562,13]
[392979855,1762193440373,-150.9,0.00034591,60]
[392979857,1762193440385,-168.0,0.000346,2]
[392979859,1762193440394,-154.17635411,0.00034652,2]
[392979861,1762193440404,-150.92,0.00034662,60]
[392979864,1762193440414,-150.92,0.00034662,60]
[392979866,1762193440424,-1131.0,0.00034731,20]
[392979869,1762193440434,-150.92,0.00034762,60]
[392979870,1762193440443,-150.92,0.00034762,60]
[392979871,1762193440452,-1029.45,0.00034794,2]
[392979872,1762193440461,-1000.0,0.00034795,2]
[392979874,1762193440470,-1000.0,0.00034802,5]
[392979876,1762193440480,-1567.35,0.00034825,120]
[392979878,1762193440489,-150.92,0.00034862,60]
[392979880,1762193440498,-150.92,0.00034862,60]
[392979882,1762193440508,-1000.0,0.00034874,2]
[392979884,1762193440517,-382.12409825,0.00034913,2]
[392979886,1762193440527,-23167.9032879,0.0003496,3]
[392979888,1762193440536,-150.92,0.00034962,60]
[392979889,1762193440546,-150.92,0.00034962,60]
[392979890,1762193440554,-500.0,0.00034999,7]
[392979891,1762193440563,-20000.0,0.00035,20]
[392979892,1762193440573,-3931.92076933,0.00035,3]
[392979893,1762193440583,-150.92,0.00035062,60]
[392979894,1762193440591,-150.92,0.00035062,60]
[392979895,1762193440601,-1029.45,0.00035068,2]
[392979896,1762193440611,-500.0,0.00035068,2]
[392979897,1762193440620,-1000.0,0.00035068,2]
[392979898,1762193440629,-23167.9032879,0.00035079,3]
[392979899,1762193440638,-1131.0,0.00035089,20]
[392979900,1762193440648,-1000.0,0.00035124,2]
[392979901,1762193440657,-150.92,0.00035162,60]
[392979902,1762193440667,-151.01,0.00035162,60]
[392979903,1762193440676,-250.0,0.00035182,2]
[392979904,1762193440685,-466.47919615,0.00035213,5]
[392979905,1762193440694,-150.92,0.00035262,60]
[392979906,1762193440704,-203.69,0.00035264,5]
[392979907,1762193440713,-33365.3868035,0.00035332,3]
[392979908,1762193440723,-1029.45,0.00035342,2]
[392979909,1762193440732,-1000.0,0.00035342,2]
[392979910,1762193440741,-150.92,0.00035362,60]
[392979911,1762193440751,-500.0,0.00035383,2]
[392979912,1762193440762,-1131.0,0.00035447,20]
[392979913,1762193440782,-150.92,0.00035462,60]
[392979914,1762193440792,-300.0,0.000355,2]
[392979915,1762193440801,-347.44250129,0.000355,2]
[392979916,1762193440811,-150.92,0.00035562,60]
[392979917,1762193440820,-1029.45,0.00035616,2]
[392979918,1762193440830,-1000.0,0.00035616,2]
[392979919,1762193440839,-341.8,0.00035616,2]
[392979920,1762193440849,-150.92,0.00035662,60]
[392979921,1762193440858,-151.07,0.00035762,60]
[392979922,1762193440868,-1131.0,0.00035805,20]
[392979923,1762193440877,-168.0,0.00035833,2]
[392979924,1762193440887,-1029.45,0.0003589,2]
[392979925,1762193440896,-2000.0,0.0003589,2]
[392979926,1762193440906,-2000.0,0.000359,2]
[392979927,1762193440916,-168.0,0.00035945,7]
[392979928,1762193440926,-181.06144846,0.00036,2]
[392979929,1762193440935,-168.0,0.00036034,2]
[392979930,1762193440944,-186.0,0.00036074,2]
[392979931,1762193440953,-3167.86802257,0.00036102,8]
[392979932,1762193440963,-2000.0,0.00036125,2]
[392979933,1762193440972,-23167.9032879,0.00036154,3]
[392979934,1762193440981,-1131.0,0.00036163,20]
[392979935,1762193440991,-1029.45,0.00036164,2]
[392979936,1762193441000,-1000.0,0.00036164,2]
[392979937,1762193441010,-1000.0,0.000362,2]
[392979938,1762193441020,-168.0,0.0003626,2]
[392979939,1762193441030,-1029.63267672,0.00036438,2]
[392979940,1762193441039,-1000.0,0.00036438,2]
[392979941,1762193441048,-672.44815368,0.00036464,2]
[392979942,1762193441253,-33365.3868035,0.0003648,4]
[392979943,1762193441266,-168.0,0.00036483,2]
[392979944,1762193441276,-591.9489905,0.000365,120]
[392979945,1762193441286,-1131.0,0.00036521,20]
[392979946,1762193441302,-168.0,0.00036524,2]
[392979947,1762193441312,-188.0,0.00036572,7]
[392979948,1762193441322,-2525.314999,0.000366,23]
[392979949,1762193441332,-200.0,0.00036669,10]
[392979950,1762193441341,-1000.0,0.00036712,2]
[392979951,1762193441353,-672.44815369,0.00036713,2]
[392979952,1762193441363,-200.0,0.00036725,10]
[392979953,1762193441373,-209.39882768,0.00036728,120]
[392979954,1762193441386,-4906.19298,0.0003675,2]
[392979955,1762193441396,-200.0,0.00036827,10]
[392979956,1762193441405,-168.0,0.00036849,2]
[392979957,1762193441414,-186.0,0.00036874,7]
[392979958,1762193441424,-1131.0,0.00036879,20]
[392979959,1762193441433,-471.14315359,0.00036882,2]
[392979960,1762193441444,-300288.481231,0.00036892,4]
[392979961,1762193441454,-440190.16247,0.00036892,4]
[392979962,1762193441463,-151.0,0.00036899,14]
[392979963,1762193441473,-860553.85904373,0.00036902,7]
[392979964,1762193441483,-1430.0,0.00036932,30]
[392979965,1762193441493,-176.38468156,0.00036965,2]
[392979966,1762193441502,-1000.0,0.00036986,2]
[392979967,1762193441512,-150.0,0.00037,60]
[392979968,1762193441522,-300.0,0.00037,5]
[392979969,1762193441531,-477.5520043,0.00037,7]
[392979970,1762193441540,-5850.20598946,0.00037001,2]
[392979971,1762193441550,-5161.43135385,0.00037001,2]
[392979972,1762193441559,-3543.6038,0.00037001,2]
[392979973,1762193441568,-154.17635411,0.00037002,2]
[392979974,1762193441580,-382.12409825,0.00037002,2]
[392979975,1762193441590,-193.41210666,0.00037002,7]
[392979976,1762193441599,-1474.65626623,0.00037002,2]
[392979977,1762193441608,-208.76484366,0.00037002,2]
[392979978,1762193441617,-848.72410304,0.00037002,2]
[392979979,1762193441627,-153.68323784,0.00037002,30]
[392979980,1762193441637,-153.68323784,0.00037002,30]
[392979981,1762193441647,-153.68323784,0.00037002,30]
[392979982,1762193441656,-153.68323784,0.00037002,30]
[392979983,1762193441668,-153.68323784,0.00037002,30]
[392979984,1762193441678,-153.68323784,0.00037002,30]
[392979985,1762193441687,-153.68323784,0.00037002,30]
[392979986,1762193441697,-153.68323784,0.00037002,30]
[392979987,1762193441707,-153.68323784,0.00037002,30]
[392979988,1762193441716,-153.68323784,0.00037002,30]
[392979989,1762193441726,-153.68323784,0.00037002,30]
[392979990,1762193441735,-153.68323784,0.00037002,30]
[392979991,1762193441744,-153.68323784,0.00037002,30]
[392979992,1762193441754,-153.68323784,0.00037002,30]
[392979993,1762193441763,-153.68323784,0.00037002,30]
[392979994,1762193441773,-153.68323784,0.00037002,30]
[392979995,1762193441783,-153.68323784,0.00037002,30]
[392979996,1762193441793,-153.68323784,0.00037002,30]
[392979997,1762193441802,-153.68,0.00037002,30]
[392979998,1762193441812,-340.66451054,0.00037002,30]
[392979999,1762193441822,-340.66451054,0.00037002,30]
[392980000,1762193441831,-340.66451054,0.00037002,30]
[392980001,1762193441841,-340.66451054,0.00037002,30]
[392980002,1762193441850,-340.66451054,0.00037002,30]
[392980003,1762193441859,-340.66451054,0.00037002,30]
[392980004,1762193441869,-340.66451054,0.00037002,30]
[392980005,1762193441878,-340.66451054,0.00037002,30]
[392980006,1762193441887,-340.66451054,0.00037002,30]
[392980007,1762193441897,-340.66451054,0.00037002,30]
[392980008,1762193441906,-340.66451054,0.00037002,30]
[392980009,1762193441917,-340.66451054,0.00037002,30]
[392980010,1762193441926,-340.66451054,0.00037002,30]
[392980011,1762193441935,-340.66451054,0.00037002,30]
[392980012,1762193441945,-340.66451054,0.00037002,30]
[392980013,1762193441954,-340.66451054,0.00037002,30]
[392980014,1762193441963,-340.66451054,0.00037002,30]
[392980015,1762193441973,-340.66451054,0.00037002,30]
[392980016,1762193441982,-340.66451054,0.00037002,30]
[392980017,1762193441991,-340.66,0.00037002,30]
[392980018,1762193442000,-238.99551242,0.00037002,30]
[392980019,1762193442011,-238.99551242,0.00037002,30]
[392980020,1762193442020,-238.99551242,0.00037002,30]
[392980021,1762193442029,-238.99551242,0.00037002,30]
[392980022,1762193442039,-238.99551242,0.00037002,30]
[392980023,1762193442048,-238.99551242,0.00037002,30]
[392980024,1762193442060,-238.99551242,0.00037002,30]
[392980025,1762193442070,-238.99551242,0.00037002,30]
[392980026,1762193442080,-238.99551242,0.00037002,30]
[392980027,1762193442090,-238.99551242,0.00037002,30]
[392980028,1762193442099,-238.99551242,0.00037002,30]
[392980029,1762193442109,-238.99551242,0.00037002,30]
[392980030,1762193442118,-238.99551242,0.00037002,30]
[392980031,1762193442128,-238.99551242,0.00037002,30]
[392980032,1762193442138,-238.99551242,0.00037002,30]
[392980033,1762193442147,-238.99551242,0.00037002,30]
[392980034,1762193442157,-238.99551242,0.00037002,30]
[392980035,1762193442167,-238.99551242,0.00037002,30]
[392980036,1762193442176,-238.99551242,0.00037002,30]
[392980037,1762193442185,-238.99,0.00037002,30]
[392980038,1762193442195,-557.65619565,0.00037002,30]
[392980039,1762193442204,-557.65619565,0.00037002,30]
[392980040,1762193442214,-557.65619565,0.00037002,30]
[392980041,1762193442224,-557.65619565,0.00037002,30]
[392980042,1762193442233,-557.65619565,0.00037002,30]
[392980043,1762193442243,-557.65619565,0.00037002,30]
[392980044,1762193442252,-557.65619565,0.00037002,30]
[392980045,1762193442261,-557.65619565,0.00037002,30]
[392980046,1762193442271,-557.65619565,0.00037002,30]